{"text_format":"1","workbook":"xlsx","n_sheets":2,"sheets":["Выручка от реализации","Справочник"],"not_rendered":{"charts":0,"images":1,"macros":1,"external_links":0,"defined_names":0,"comments":0,"pivot_tables":0},"unopened":[],"bounds":{"document_bytes":16777216,"sheet_cells":100000,"rows_first":2000,"rows_last":500,"rows_between":2000,"halvings":0,"cell_chars":16384,"cell_head_chars":4096},"cells_cut":0,"cells_raw":0,"read":"whole","date_system":"1900"}

{"sheet":"Выручка от реализации","index":0,"n_rows":25,"n_cols":8,"rows_kept":25,"cut":false,"hidden":false,"merged":[]}
[]
["Выручка от реализации продукции"]
[]
["Код статьи доходов","Наименование товаров","Цена, руб.","Кол-во, шт.","Сумма, руб.","Скидка, %","Цена с учетом скидки, руб.","Сумма, руб."]
["Статья затрат: 1.01","SKU001",700,5000,{"$f":"C5*D5","v":3500000},0.1,{"$f":"C5-C5*F5","v":630},{"$f":"G5*D5","v":3150000}]
["Статья затрат: 1.02","SKU002",400,6000,{"$f":"C6*D6","v":2400000},0.15,{"$f":"C6-C6*F6","v":340},{"$f":"G6*D6","v":2040000}]
["Статья затрат: 1.03","SKU003",800,8000,6400000,0.05,760,6080000]
["Статья затрат: 1.04","SKU004",350,12000,4200000,0,350,4200000]
["Статья затрат: 1.05","SKU005",null,null,0,null,0,0]
["Статья затрат: 1.06","SKU006",null,null,0,null,0,0]
["Статья затрат: 1.07","SKU007",null,null,0,null,0,0]
["Статья затрат: 1.08","SKU008",null,null,0,null,0,0]
["Статья затрат: 1.09","SKU009",null,null,0,null,0,0]
["Статья затрат: 1.10","SKU010",null,null,0,null,0,0]
["Статья затрат: 1.11","SKU011",null,null,0,null,0,0]
["Статья затрат: 1.12","SKU012",null,null,0,null,0,0]
["Статья затрат: 1.13","SKU013",null,null,0,null,0,0]
["Статья затрат: 1.14","SKU014",null,null,0,null,0,0]
["Статья затрат: 1.15","SKU015",null,null,0,null,0,0]
["Статья затрат: 1.16","SKU016",null,null,0,null,0,0]
["Статья затрат: 1.17","SKU017",null,null,0,null,0,0]
["Статья затрат: 1.18","SKU018",null,null,0,null,0,0]
["Статья затрат: 1.19","SKU019",null,null,0,null,0,0]
["Статья затрат: 1.20","SKU020",null,null,0,null,0,0]
["Итого выручка от реализации продукции",null,{"$f":"E25/D25","v":532.25806451612902},{"$f":"SUM(D5:D24)","v":31000},{"$f":"SUM(E5:E24)","v":16500000},null,{"$f":"H25/D25","v":499.03225806451616},{"$f":"SUM(H5:H24)","v":15470000}]

{"sheet":"Справочник","index":1,"n_rows":31,"n_cols":5,"rows_kept":31,"cut":false,"hidden":false,"merged":[]}
["Код статьи","Группа затрат","Статья затрат","Подстатьи затрат"]
["1.01","ATL-реклама","Затраты на традиционную рекламу","ТВ",{"$f":"LEN(A2)","v":4}]
["1.02","ATL-реклама","Затраты на традиционную рекламу","радио"]
["1.03","ATL-реклама","Затраты на традиционную рекламу","печатные СМИ"]
["1.04","ATL-реклама","Затраты на традиционную рекламу","наружная реклама"]
["1.05","ATL-реклама","Затраты на традиционную рекламу","реклама в кинотеатрах"]
["1.06","ATL-реклама","Затраты на традиционную рекламу","Интернет"]
["1.07","BTL-реклама","Затраты на стимуляцию сбыта (конечный потребитель)","промоакции"]
["1.08","BTL-реклама","Затраты на стимуляцию сбыта (конечный потребитель)","бесплатные образцы товара"]
["1.09","BTL-реклама","Затраты на стимуляцию сбыта (конечный потребитель)","лотереи"]
["1.10","BTL-реклама","Затраты на стимуляцию сбыта (сеть дистрибьюторов)","рассылка рекламы по почте, email"]
["1.11","BTL-реклама","Затраты на стимуляцию сбыта (сеть дистрибьюторов)","каталоги"]
["1.12","BTL-реклама","Затраты на стимуляцию сбыта (сеть дистрибьюторов)","телемагазины"]
["1.13","BTL-реклама","Затраты на стимуляцию сбыта (рекламные материалы - POS)","дизайн рекламных материалов для использования в местах продаж"]
["1.14","BTL-реклама","Затраты на стимуляцию сбыта (рекламные материалы - POS)","производство рекламных материалов для использования в местах продаж"]
["1.15","BTL-реклама","Затраты на стимуляцию сбыта (event marketing)","презентация новых видов продукции или торговой марки"]
["1.16","BTL-реклама","Затраты на стимуляцию сбыта (event marketing)","проведение распродаж, конкурсов, лотерей, купонные скидки"]
["1.17","BTL-реклама","Затраты на стимуляцию сбыта (event marketing)","участие в выставках и ярмарках, организация посещения предприятия"]
["1.18","BTL-реклама","PR","связи с общественностью"]
["1.19","Затраты на исследования","Количественные исследования","массовые опросы (интервью, анкетирование)"]
["1.20","Затраты на исследования","Количественные исследования","аудит точек продаж"]
["1.21","Затраты на исследования","Количественные исследования","тестирование"]
["1.22","Затраты на исследования","Количественные исследования","контент-анализ"]
["1.23","Затраты на исследования","Качественные исследования","экспертный опрос"]
["1.24","Затраты на исследования","Качественные исследования","фокус-группа"]
["1.25","Затраты на исследования","Качественные исследования","таинственный покупатель"]
["1.26"]
["1.27"]
["1.28"]
["1.29"]
["1.30"]